bitfinex/quotes_BTCUSD_20250414
["timestamp","ask_amount","ask_price","bid_price","bid_amount"]
[1744651103934,0.249394,84204.0,84201.0,0.35836754]
[1744651104142,0.249394,84204.0,84201.0,0.12084154]
[1744651105466,0.249388,84206.0,84201.0,0.35836754]
[1744651105667,0.00300004,84202.0,84201.0,0.35836754]
[1744651106039,0.00100004,84202.0,84201.0,0.12084154]
[1744651106235,0.00300004,84202.0,84201.0,0.12084154]
[1744651106898,0.24052404,84202.0,84201.0,0.12084154]
[1744651107904,0.249413,84198.0,84192.0,0.011877]
[1744651108110,0.249413,84198.0,84196.0,0.23754]
[1744651108305,0.249407,84200.0,84197.0,0.12084154]
[1744651108513,0.249407,84200.0,84197.0,0.37025254]
[1744651108713,0.249402,84201.0,84198.0,0.011876]
[1744651108871,0.23753,84200.0,84199.0,0.12084154]
[1744651109499,0.23853,84200.0,84199.0,0.12084154]
[1744651109829,0.23753,84200.0,84199.0,0.12084154]
[1744651109970,0.23953,84200.0,84199.0,0.12084154]
[1744651110904,0.002,84200.0,84199.0,0.35837354]
[1744651111791,0.003,84200.0,84199.0,0.35837354]
[1744651112226,4e-08,84202.0,84201.0,0.237526]
[1744651112436,4e-08,84202.0,84201.0,0.35836754]
[1744651113761,4e-08,84202.0,84201.0,0.36036754]
[1744651114627,4e-08,84202.0,84201.0,0.36136754]
[1744651117957,4e-08,84202.0,84201.0,0.37590839]
[1744651118167,4e-08,84202.0,84201.0,0.42300839]
[1744651118677,4e-08,84202.0,84201.0,0.76300839]
[1744651118921,4e-08,84202.0,84201.0,0.76000839]
[1744651119120,4e-08,84202.0,84201.0,0.76300839]
[1744651119336,4e-08,84202.0,84201.0,0.76700839]
[1744651121627,4e-08,84202.0,84201.0,0.77929178]
[1744651122189,4e-08,84202.0,84201.0,0.73219178]
[1744651134983,4e-08,84202.0,84201.0,0.88815178]
[1744651136619,0.6347,84386.0,84231.0,0.237442]
[1744651136620,0.237409,84243.0,84231.0,0.237442]
[1744651136859,0.0464,84239.0,84235.0,0.23743]
[1744651137061,0.0464,84239.0,84235.0,0.35827154]
[1744651137269,0.0127162,84238.0,84235.0,0.35827154]
[1744651137471,0.0008452,84238.0,84235.0,0.35827154]
[1744651137872,0.0008452,84238.0,84235.0,0.35838062]
[1744651139101,0.0008452,84238.0,84235.0,0.69838062]
[1744651139745,0.0008452,84238.0,84235.0,0.72484094]
[1744651141499,0.0008452,84238.0,84235.0,0.72684094]
[1744651141928,0.0008452,84238.0,84235.0,0.72884094]
[1744651143309,0.0008452,84238.0,84235.0,0.88476094]
[1744651143917,6e-07,84238.0,84237.0,0.59196585]
[1744651144114,6e-07,84238.0,84237.0,0.71280739]
[1744651145389,6e-07,84238.0,84237.0,0.71780739]
[1744651145591,6e-07,84238.0,84237.0,0.71280739]
[1744651145781,6e-07,84238.0,84237.0,1.12490739]
[1744651145925,6e-07,84238.0,84237.0,1.13190739]
[1744651146326,6e-07,84259.0,84258.0,0.237366]
[1744651146527,6e-07,84259.0,84258.0,0.35820754]
[1744651146973,6e-07,84259.0,84258.0,0.71274839]
[1744651147327,0.0472436,84270.0,84258.0,0.71274839]
[1744651147328,2e-07,84270.0,84269.0,0.237335]
[1744651147531,2e-07,84270.0,84269.0,0.35817654]
[1744651148575,4.633e-05,84270.0,84269.0,0.35817654]
[1744651149004,4.633e-05,84270.0,84269.0,0.36017654]
[1744651149453,4.633e-05,84270.0,84269.0,0.37198982]
[1744651149625,0.04634633,84270.0,84269.0,0.239335]
[1744651149832,0.04634633,84270.0,84269.0,0.242335]
[1744651150433,0.04634633,84270.0,84269.0,0.239335]
[1744651150772,0.04634633,84270.0,84269.0,0.238335]
[1744651152305,0.04634633,84270.0,84269.0,0.001]
[1744651152306,0.33207833,84270.0,84269.0,0.001]
[1744651152506,0.011867,84267.0,84265.0,0.237346]
[1744651152721,0.011867,84264.0,84261.0,0.237357]
[1744651152930,0.0467,84263.0,84262.0,0.237354]
[1744651153134,0.05154355,84263.0,84262.0,0.237354]
[1744651155816,0.0467,84263.0,84262.0,0.237354]
[1744651156013,0.0491,84262.0,84255.0,0.237372]
[1744651156187,0.29209346,84261.0,84257.0,0.237368]
[1744651156414,0.30396046,84261.0,84257.0,0.237368]
[1744651156741,0.30396046,84261.0,84258.0,0.237365]
[1744651157167,0.05473646,84261.0,84259.0,0.237362]
[1744651157364,0.05473646,84261.0,84260.0,0.23736]
[1744651157591,0.0499,84261.0,84260.0,0.23736]
[1744651158073,0.05473646,84261.0,84260.0,0.23736]
[1744651158696,0.0499,84261.0,84260.0,0.23736]
[1744651164204,0.05473646,84261.0,84260.0,0.23736]
[1744651164540,0.23736,84260.0,84256.0,0.237371]
[1744651164709,0.23736,84260.0,84232.0,0.356155]
[1744651164710,0.011868,84259.0,84246.0,0.011869]
[1744651164942,0.00482583,84258.0,84255.0,0.237371]
[1744651165097,0.00482583,84258.0,84247.0,0.011869]
[1744651165098,0.00482583,84258.0,84257.0,0.237369]
[1744651165257,0.237366,84258.0,84254.0,0.237377]
[1744651165465,0.00482228,84257.0,84253.0,0.23738]
[1744651165673,0.011869,84248.0,84236.0,0.01200732]
[1744651165896,0.249257,84251.0,84246.0,0.237399]
[1744651165897,0.00478684,84247.0,84246.0,0.237399]
[1744651166109,0.011869,84250.0,84248.0,0.237393]
[1744651166385,0.00479393,84249.0,84248.0,0.237393]
[1744651166799,0.011868,84254.0,84252.0,0.237382]
[1744651167003,0.00480811,84253.0,84251.0,0.237385]
[1744651167388,0.249252,84252.0,84249.0,0.237388]
[1744651167587,0.00480102,84251.0,84249.0,0.237388]
[1744651168243,0.00480102,84251.0,84250.0,0.237388]
[1744651169377,0.00580102,84251.0,84250.0,0.237388]
[1744651169724,0.24318802,84251.0,84248.0,0.237393]
[1744651169896,0.25505702,84251.0,84248.0,0.237393]
[1744651170102,0.25605702,84251.0,84249.0,0.23739]
[1744651170312,0.00680102,84251.0,84249.0,0.23739]
[1744651170663,0.00580102,84251.0,84250.0,0.237388]
[1744651172070,0.00480102,84251.0,84250.0,0.237388]
[1744651172284,0.237377,84254.0,84245.0,0.2374]
[1744651172285,0.049,84255.0,84254.0,0.237377]
[1744651172747,0.05373213,84255.0,84254.0,0.237377]
[1744651173901,0.049,84255.0,84254.0,0.237377]
[1744651174107,0.0491,84262.0,84261.0,0.237357]
[1744651174306,0.05378882,84262.0,84261.0,0.237357]
[1744651174505,0.0491,84262.0,84261.0,0.237357]
[1744651175560,0.05380396,84262.0,84261.0,0.237357]
[1744651175757,0.00470396,84262.0,84261.0,0.237357]
[1744651176163,0.00470396,84262.0,84261.0,0.35819854]
[1744651176339,0.00570396,84262.0,84261.0,0.35819854]
[1744651176545,0.001,84262.0,84261.0,0.35819854]
[1744651176948,4.633e-05,84270.0,84269.0,0.237335]
[1744651187280,4.633e-05,84270.0,84269.0,0.35817654]
[1744651189716,4.633e-05,84270.0,84269.0,0.35917654]
[1744651190240,9.3e-07,84272.0,84269.0,0.35917654]
[1744651190441,9.3e-07,84272.0,84271.0,0.71271139]
[1744651191499,9.3e-07,84272.0,84271.0,0.69817054]
[1744651191617,9.3e-07,84272.0,84271.0,0.70017054]
[1744651191814,9.3e-07,84272.0,84271.0,0.69817054]
[1744651192281,9.3e-07,84272.0,84271.0,0.70217054]
[1744651193063,9.3e-07,84272.0,84271.0,0.70617054]
[1744651193440,9.3e-07,84272.0,84271.0,0.72071139]
[1744651195338,7.3e-07,84287.0,84286.0,0.237287]
[1744651195919,7.3e-07,84287.0,84286.0,0.35812854]
[1744651197158,7.3e-07,84287.0,84286.0,0.71466939]
[1744651197947,7.3e-07,84287.0,84286.0,0.71566939]
[1744651200653,9.3e-07,84295.0,84294.0,0.237264]
[1744651200859,9.3e-07,84295.0,84294.0,0.71264639]
[1744651201955,9.3e-07,84295.0,84294.0,0.71564639]
[1744651202699,9.3e-07,84295.0,84294.0,0.71864639]
[1744651204001,9.3e-07,84295.0,84294.0,0.70410554]
[1744651206081,9.3e-07,84295.0,84294.0,0.36410554]
[1744651207093,9.3e-07,84295.0,84294.0,0.70410554]
[1744651207730,9.3e-07,84295.0,84294.0,0.71564639]
[1744651207934,9.3e-07,84295.0,84294.0,0.71364639]
[1744651208538,9.3e-07,84295.0,84294.0,0.71464639]
[1744651208757,9.3e-07,84295.0,84294.0,0.71664639]
[1744651209315,9.3e-07,84295.0,84294.0,0.71464639]
[1744651209537,9.3e-07,84295.0,84294.0,0.71664639]
[1744651210714,9.3e-07,84295.0,84294.0,0.71464639]
[1744651211048,9.3e-07,84295.0,84294.0,0.71664639]
[1744651211454,3.3e-07,84304.0,84303.0,0.577239]
[1744651211658,3.3e-07,84304.0,84303.0,0.85336054]
[1744651212688,0.00046191,84304.0,84303.0,0.85636054]
[1744651214130,9.1e-07,84304.0,84303.0,0.85936054]
[1744651214568,9.1e-07,84304.0,84303.0,0.85336054]
[1744651214705,9.1e-07,84304.0,84303.0,0.85636054]
[1744651214900,9.1e-07,84304.0,84303.0,0.85336054]
[1744651215303,9.1e-07,84304.0,84303.0,0.86236054]
[1744651215650,9.1e-07,84304.0,84303.0,0.87690139]
[1744651215941,9.1e-07,84304.0,84303.0,0.88619212]
[1744651217208,9.1e-07,84304.0,84303.0,0.89119212]
[1744651222268,9.1e-07,84304.0,84303.0,1.30329212]
[1744651222717,9.1e-07,84304.0,84303.0,1.28875127]
[1744651222926,9.1e-07,84304.0,84303.0,1.30329212]
[1744651223506,9.1e-07,84304.0,84303.0,1.29729212]
[1744651223712,9.1e-07,84304.0,84303.0,1.29229212]
[1744651223923,9.1e-07,84304.0,84303.0,1.29729212]
[1744651224137,9.1e-07,84304.0,84303.0,1.30229212]
[1744651224758,9.1e-07,84304.0,84303.0,1.28775127]
[1744651225093,9.1e-07,84304.0,84303.0,0.94775127]
[1744651226683,9.1e-07,84304.0,84303.0,0.94275127]
[1744651227072,9.1e-07,84304.0,84303.0,0.94075127]
[1744651227471,9.1e-07,84304.0,84303.0,0.37637127]
[1744651227698,9.1e-07,84304.0,84303.0,0.36408054]
[1744651227899,0.0068903,84304.0,84303.0,0.12684154]
[1744651228163,0.0068903,84304.0,84303.0,0.006]
[1744651228164,0.2894263,84304.0,84303.0,0.006]
[1744651228706,0.0521903,84304.0,84303.0,0.006]
[1744651228960,0.0521903,84304.0,84303.0,0.36408054]
[1744651229164,0.04530091,84304.0,84303.0,0.36408054]
[1744651230406,9.1e-07,84304.0,84303.0,0.36408054]
[1744651231457,9.1e-07,84304.0,84303.0,0.70408054]
[1744651231833,9.1e-07,84304.0,84303.0,0.71862139]
[1744651232723,9.1e-07,84304.0,84303.0,0.71562139]
[1744651232929,7.1e-07,84310.0,84309.0,0.59176285]
[1744651233129,7.1e-07,84310.0,84309.0,0.71260439]
[1744651233701,7.1e-07,84310.0,84309.0,1.12470439]
[1744651234036,7.1e-07,84310.0,84309.0,1.17160439]
[1744651234881,7.1e-07,84310.0,84309.0,1.17660439]
[1744651235080,7.1e-07,84310.0,84309.0,1.17760439]
[1744651235485,7.1e-07,84310.0,84309.0,1.18460439]
[1744651236297,7.1e-07,84310.0,84309.0,1.13770439]
[1744651239575,7.1e-07,84310.0,84309.0,0.78316354]
[1744651239737,7.1e-07,84310.0,84309.0,1.12316354]
[1744651240470,7.1e-07,84310.0,84309.0,1.11716354]
[1744651240855,7.1e-07,84310.0,84309.0,1.11516354]
[1744651241279,7.1e-07,84310.0,84309.0,1.11016354]
[1744651241681,7.1e-07,84310.0,84309.0,1.11816354]
[1744651241854,7.1e-07,84310.0,84309.0,1.11316354]
[1744651242286,7.1e-07,84310.0,84309.0,1.11616354]
[1744651242720,7.1e-07,84310.0,84309.0,0.70406354]
[1744651247495,7.1e-07,84310.0,84309.0,0.36406354]
[1744651258429,7.1e-07,84310.0,84309.0,0.37860439]
[1744651259161,7.1e-07,84310.0,84309.0,0.71860439]
[1744651259980,7.1e-07,84310.0,84309.0,0.71560439]
[1744651260183,7.1e-07,84310.0,84309.0,0.71860439]
[1744651260519,7.1e-07,84310.0,84309.0,1.13070439]
[1744651260700,7.1e-07,84310.0,84309.0,1.12770439]
[1744651260876,7.1e-07,84310.0,84309.0,1.13070439]
[1744651261085,7.1e-07,84310.0,84309.0,1.12770439]
[1744651261288,0.002,84319.0,84318.0,0.59173785]
[1744651261496,0.002,84319.0,84318.0,0.71257939]
[1744651263376,0.002,84319.0,84318.0,0.71457939]
[1744651264076,0.002,84319.0,84318.0,0.71557939]
[1744651264656,0.002,84319.0,84318.0,0.71857939]
[1744651264856,0.0008428,84329.0,84326.0,0.011858]
[1744651265052,8e-07,84329.0,84328.0,0.59170985]
[1744651265251,8e-07,84329.0,84328.0,0.71255139]
[1744651265914,0.0008426,84344.0,84328.0,0.71255139]
[1744651265915,2e-07,84338.0,84337.0,0.59168385]
[1744651266116,2e-07,84338.0,84337.0,0.71252539]
[1744651266635,0.0008426,84344.0,84337.0,0.71252539]
[1744651266636,0.0008426,84344.0,84343.0,0.59166685]
[1744651266837,0.0008426,84344.0,84343.0,0.71250839]
[1744651267141,0.0009685,84344.0,84343.0,0.71250839]
[1744651267913,0.0009685,84344.0,84343.0,0.71550839]
[1744651268181,0.0009685,84344.0,84343.0,0.73070706]
[1744651269907,5e-07,84344.0,84343.0,0.73070706]
[1744651270513,5e-07,84349.0,84346.0,0.011855]
[1744651270777,5e-07,84349.0,84348.0,0.71249439]
[1744651270974,3e-07,84355.0,84354.0,0.237096]
[1744651271110,1e-07,84357.0,84356.0,0.25163085]
[1744651271315,1e-07,84357.0,84356.0,0.71247239]
[1744651273058,1e-07,84357.0,84356.0,0.71547239]
[1744651273801,1e-07,84357.0,84356.0,0.71847239]
[1744651275000,1e-07,84357.0,84356.0,1.13057239]
[1744651275697,1e-07,84357.0,84356.0,1.12757239]
[1744651275956,1e-07,84357.0,84356.0,1.13157239]
[1744651276440,1e-07,84357.0,84356.0,1.12757239]
[1744651276641,1e-07,84357.0,84356.0,1.12457239]
[1744651276857,1e-07,84357.0,84356.0,1.12957239]
[1744651277018,1e-07,84357.0,84356.0,1.13357239]
[1744651277230,0.000844,84363.0,84362.0,0.59161385]
[1744651277231,1e-07,84363.0,84362.0,0.59161385]
[1744651277439,1e-07,84363.0,84362.0,1.12455539]
[1744651279667,1e-07,84363.0,84362.0,1.12855539]
[1744651279925,1e-07,84363.0,84362.0,1.13255539]
[1744651281043,1e-07,84363.0,84362.0,1.72255539]
[1744651281240,0.0008436,84389.0,84362.0,1.72255539]
[1744651281241,0.0008436,84389.0,84378.0,0.25156885]
[1744651281488,0.00213831,84379.0,84378.0,0.71241039]
[1744651282500,0.00213831,84379.0,84378.0,1.12651039]
[1744651282501,3.1e-07,84379.0,84378.0,1.12651039]
[1744651282703,6e-07,84391.0,84388.0,0.60339085]
[1744651282947,4.5e-07,84391.0,84390.0,0.71237639]
[1744651283125,0.00038215,84397.0,84396.0,0.59151885]
[1744651283396,0.00038215,84397.0,84396.0,1.27910039]
[1744651283397,1.5e-07,84397.0,84396.0,1.27910039]
[1744651284153,1.5e-07,84397.0,84396.0,1.27886039]
[1744651284820,1.5e-07,84397.0,84396.0,1.13630095]
[1744651284985,0.2497558,84416.0,84415.0,0.576924]
[1744651284986,3.5e-07,84416.0,84415.0,0.576924]
[1744651285338,0.00013855,84416.0,84415.0,0.86670639]
[1744651285907,0.00013855,84416.0,84415.0,0.71230639]
[1744651286110,0.04703855,84416.0,84415.0,0.46084154]
[1744651286315,0.09243855,84416.0,84415.0,0.12084154]
[1744651286639,0.09716063,84416.0,84415.0,0.12084154]
[1744651287050,0.236937,84411.0,84407.0,0.011847]
[1744651287199,0.011846,84412.0,84407.0,0.011847]
[1744651287200,0.011846,84412.0,84408.0,0.13268854]
[1744651287553,0.011846,84415.0,84410.0,0.248783]
[1744651287729,0.0070265,84411.0,84410.0,0.011846]
[1744651287936,0.248783,84411.0,84408.0,0.12084154]
[1744651288135,0.00698603,84410.0,84408.0,0.13268854]
[1744651288335,0.00698603,84410.0,84409.0,0.236941]
[1744651288554,0.00013855,84416.0,84415.0,0.576924]
[1744651288731,5.5e-07,84416.0,84415.0,0.86666639]
[1744651288939,2.5e-07,84429.0,84428.0,0.25142885]
[1744651289132,0.00012586,84429.0,84428.0,0.71227039]
[1744651290842,0.00012586,84429.0,84428.0,0.71327039]
[1744651291277,0.00012586,84429.0,84428.0,0.71227039]
[1744651291709,0.00012586,84429.0,84428.0,0.71327039]
[1744651291919,0.00012586,84429.0,84428.0,0.69872954]
[1744651293612,0.04812586,84429.0,84428.0,0.69872954]
[1744651294317,0.04812586,84429.0,84428.0,0.35872954]
[1744651297148,0.00012586,84429.0,84428.0,0.35872954]
[1744651297335,0.00012586,84429.0,84428.0,0.71327039]
[1744651302659,0.00012586,84429.0,84428.0,0.69872954]
[1744651302835,0.04982586,84429.0,84428.0,0.12184154]
[1744651303161,0.09952586,84429.0,84428.0,0.12184154]
[1744651303330,0.09952586,84429.0,84428.0,0.35872954]
[1744651304121,0.09952586,84429.0,84428.0,0.35772954]
[1744651304324,0.04982586,84429.0,84428.0,0.35772954]
[1744651304566,0.04982586,84429.0,84428.0,0.35872954]
[1744651304768,0.28671086,84429.0,84428.0,0.12184154]
[1744651304948,0.04982586,84429.0,84428.0,0.12184154]
[1744651305144,0.04982586,84429.0,84428.0,0.35872954]
[1744651307234,0.28671086,84429.0,84428.0,0.12184154]
[1744651307408,0.04982586,84429.0,84428.0,0.35872954]
[1744651307599,0.04982586,84429.0,84428.0,0.12184154]
[1744651307765,0.28671086,84429.0,84428.0,0.12184154]
[1744651308384,0.28671086,84429.0,84428.0,0.001]
[1744651308813,0.33231086,84429.0,84428.0,0.001]
[1744651309829,0.011845,84419.0,84416.0,0.011846]
[1744651310412,0.236919,84417.0,84415.0,0.011846]
[1744651310596,0.236911,84420.0,84416.0,0.011846]
[1744651310799,0.33331286,84429.0,84416.0,0.12084154]
[1744651311009,0.248735,84427.0,84423.0,0.248747]
[1744651311213,0.236894,84426.0,84423.0,0.248747]
[1744651311413,0.248738,84426.0,84422.0,0.011845]
[1744651311639,0.236902,84423.0,84422.0,0.12084154]
[1744651312686,0.011846,84414.0,84409.0,0.236939]
[1744651313026,0.236928,84414.0,84412.0,0.011846]
[1744651313187,0.236928,84414.0,84399.0,0.351848]
[1744651313188,0.011847,84409.0,84399.0,0.351848]
[1744651313387,0.0939,84414.0,84399.0,0.351848]
[1744651313388,0.011846,84410.0,84405.0,0.23695]
[1744651313633,0.011846,84412.0,84405.0,0.12084154]
[1744651313794,0.011846,84412.0,84398.0,0.391251]
[1744651313795,0.0452,84414.0,84413.0,0.23693]
[1744651313980,0.0499,84422.0,84420.0,0.011845]
[1744651314179,0.0499,84422.0,84419.0,0.011845]
[1744651314376,0.248753,84421.0,84415.0,0.248767]
[1744651314579,0.0499,84422.0,84419.0,0.011845]
[1744651314790,0.0499,84422.0,84421.0,0.236907]
[1744651315005,0.0499,84422.0,84421.0,0.35774854]
[1744651315416,0.04952586,84429.0,84428.0,0.236888]
[1744651315644,0.04952586,84429.0,84428.0,0.35772954]
[1744651316203,0.04952586,84429.0,84428.0,0.12084154]
[1744651316721,0.28741086,84429.0,84428.0,0.12084154]
[1744651316930,0.28741086,84429.0,84351.0,0.06173182]
[1744651316931,0.011845,84418.0,84413.0,0.011846]
[1744651317130,0.011845,84421.0,84416.0,0.12084154]
[1744651317341,0.248749,84423.0,84420.0,0.236909]
[1744651317540,0.011845,84423.0,84421.0,0.35774654]
[1744651317742,0.011844,84424.0,84421.0,0.12084154]
[1744651317944,0.236902,84423.0,84421.0,0.12084154]
[1744651318555,0.236902,84423.0,84421.0,0.35774754]
[1744651318769,0.236902,84423.0,84421.0,0.12084154]
[1744651318991,0.248748,84424.0,84421.0,0.12084154]
[1744651319190,0.236896,84425.0,84422.0,0.236903]
[1744651319408,0.248743,84426.0,84423.0,0.12084154]
[1744651319778,0.236899,84424.0,84423.0,0.12084154]
[1744651320095,0.011845,84419.0,84415.0,0.351846]
[1744651320360,0.236918,84418.0,84417.0,0.12084154]
[1744651320579,0.283218,84418.0,84417.0,0.12084154]
[1744651321535,0.283218,84418.0,84417.0,0.12284154]
[1744651321739,0.0456,84428.0,84427.0,0.23689]
[1744651321923,0.0456,84428.0,84427.0,0.35773154]
[1744651322122,0.0497,84433.0,84428.0,0.236888]
[1744651322324,0.298418,84433.0,84428.0,0.35772954]
[1744651322580,0.236877,84432.0,84428.0,0.35772954]
[1744651322805,0.236884,84430.0,84428.0,0.12084154]
[1744651322961,0.23701086,84429.0,84428.0,0.12084154]
[1744651323554,0.23801086,84429.0,84428.0,0.12084154]
[1744651323759,0.00112586,84429.0,84428.0,0.12084154]
[1744651324708,0.23801086,84429.0,84428.0,0.12084154]
[1744651326331,0.00112586,84429.0,84428.0,0.35772954]
[1744651326508,0.00112586,84429.0,84428.0,0.37227039]
[1744651327281,0.00012586,84429.0,84428.0,0.37227039]
[1744651327689,0.00012586,84429.0,84428.0,0.37327039]
[1744651328515,0.00012586,84429.0,84428.0,0.37427039]
[1744651328964,0.00012586,84429.0,84428.0,0.71427039]
[1744651329178,0.00012586,84429.0,84428.0,0.71327039]
[1744651329418,0.00012586,84429.0,84428.0,0.71427039]
[1744651330022,0.00012586,84429.0,84428.0,0.71227039]
[1744651330250,0.00012586,84429.0,84428.0,0.71427039]
[1744651333981,8.6e-07,84429.0,84428.0,0.71427039]
[1744651335024,8.6e-07,84429.0,84428.0,0.71327039]
[1744651335174,8.6e-07,84429.0,84428.0,0.71627039]
[1744651335379,8.6e-07,84429.0,84428.0,0.71527039]
[1744651335950,8.6e-07,84429.0,84428.0,0.71827039]
[1744651337149,5.6e-07,84431.0,84430.0,0.59142285]
[1744651337445,5.6e-07,84431.0,84430.0,0.71226439]
[1744651338196,5.6e-07,84431.0,84430.0,0.71526439]
[1744651339074,5.6e-07,84431.0,84430.0,1.13036439]
[1744651339345,0.002,84439.0,84438.0,0.59140085]
[1744651339675,0.002,84439.0,84438.0,1.12434239]
[1744651339827,0.002,84439.0,84438.0,1.27850239]
[1744651340061,7e-07,84442.0,84441.0,0.59139185]
[1744651340233,7e-07,84442.0,84441.0,0.71223339]
[1744651340473,7e-07,84442.0,84441.0,0.72443756]
[1744651342091,7e-07,84442.0,84441.0,0.72643756]
[1744651342675,7e-07,84442.0,84441.0,0.72943756]
[1744651342881,0.4866242,84501.0,84460.0,0.011839]
[1744651342882,0.165954,84497.0,84460.0,0.011839]
[1744651343065,0.00055985,84463.0,84462.0,0.37217439]
[1744651343263,8.5e-07,84463.0,84462.0,0.71217439]
[1744651344174,8.5e-07,84463.0,84462.0,1.12427439]
[1744651344560,8.5e-07,84463.0,84462.0,1.12527439]
[1744651344758,8.5e-07,84463.0,84462.0,1.27935439]
[1744651345219,8.5e-07,84463.0,84462.0,1.27835439]
[1744651345395,8.5e-07,84469.0,84468.0,0.59131685]
[1744651345609,8.5e-07,84469.0,84468.0,0.71215839]
[1744651346220,8.5e-07,84469.0,84468.0,0.72100358]
[1744651346939,8.5e-07,84469.0,84468.0,0.72200358]
[1744651348134,8.5e-07,84469.0,84468.0,0.71315839]
[1744651348367,8.5e-07,84469.0,84468.0,1.12525839]
[1744651348607,8.5e-07,84469.0,84468.0,0.87394154]
[1744651348858,0.04760085,84469.0,84468.0,0.87394154]
[1744651349100,0.04760085,84469.0,84468.0,0.87494154]
[1744651349807,0.04760085,84469.0,84468.0,0.87394154]
[1744651350041,0.04760085,84469.0,84468.0,0.87594154]
[1744651350285,8.5e-07,84469.0,84468.0,0.87594154]
[1744651353649,8.5e-07,84469.0,84468.0,1.11271754]
[1744651354132,8.5e-07,84469.0,84468.0,0.70061754]
[1744651354524,8.5e-07,84469.0,84468.0,0.71515839]
[1744651356352,6.5e-07,84482.0,84481.0,0.576739]
[1744651356568,6.5e-07,84482.0,84481.0,0.71212139]
[1744651357540,6.5e-07,84482.0,84481.0,0.71412139]
[1744651358004,6.5e-07,84482.0,84481.0,0.72585316]
[1744651358208,6.5e-07,84482.0,84481.0,0.48911416]
[1744651358411,6.5e-07,84482.0,84481.0,0.48711416]
[1744651358680,6.5e-07,84482.0,84481.0,0.48911416]
[1744651359573,6.5e-07,84482.0,84481.0,0.49211416]
[1744651360504,6.5e-07,84482.0,84481.0,0.47757331]
[1744651361587,6.5e-07,84482.0,84481.0,0.49211416]
[1744651364968,8e-05,84495.0,84492.0,0.011835]
[1744651365322,0.005194,84494.0,84493.0,0.12084154]
[1744651365447,0.005194,84494.0,84493.0,0.35754654]
[1744651365651,0.00054032,84495.0,84493.0,0.35754654]
[1744651366707,0.00054032,84495.0,84494.0,0.00236669]
[1744651366921,0.00054032,84495.0,84494.0,0.12320832]
[1744651367121,0.03804958,84500.0,84499.0,0.236689]
[1744651367322,0.03818762,84500.0,84499.0,0.35753054]
[1744651367556,0.00013804,84500.0,84499.0,0.35753054]
[1744651368424,0.00013804,84500.0,84499.0,0.71207139]
[1744651370226,0.00013804,84500.0,84499.0,0.71307139]
[1744651370431,0.0132542,84501.0,84500.0,0.35454085]
[1744651370676,0.0132542,84501.0,84500.0,0.47538239]
[1744651371027,0.0132542,84501.0,84500.0,0.46084154]
[1744651371890,0.06620738,84501.0,84500.0,0.46084154]
[1744651372435,0.30289038,84501.0,84500.0,0.12184154]
[1744651372664,0.35049038,84501.0,84500.0,0.12184154]
[1744651372868,0.35049038,84501.0,84500.0,0.001]
[1744651373645,0.37257173,84501.0,84500.0,0.001]
[1744651375000,0.011835,84491.0,84488.0,0.011836]
[1744651375160,0.00531132,84490.0,84489.0,0.12084154]
[1744651375570,0.011834,84498.0,84494.0,0.011835]
[1744651375797,0.01716998,84497.0,84494.0,0.13267654]
[1744651376000,0.25386398,84497.0,84494.0,0.12084154]
[1744651376236,0.02208364,84496.0,84494.0,0.12084154]
[1744651376615,0.02208364,84496.0,84495.0,0.35754154]
[1744651376842,0.1084542,84501.0,84500.0,0.236686]
[1744651377057,0.1084542,84501.0,84500.0,0.35752754]
[1744651377258,0.1084542,84501.0,84500.0,0.12084154]
[1744651377999,0.1084542,84501.0,84500.0,0.35752754]
[1744651378223,0.1084542,84501.0,84500.0,0.12084154]
[1744651378425,0.1084542,84501.0,84500.0,0.35752754]
[1744651379315,0.1084542,84501.0,84500.0,0.12084154]
[1744651379479,0.11381968,84501.0,84500.0,0.12084154]
[1744651380333,0.011835,84493.0,84489.0,0.24855]
[1744651380604,0.248536,84495.0,84491.0,0.011835]
[1744651380803,0.00533377,84492.0,84491.0,0.011835]
[1744651381005,0.236708,84492.0,84491.0,0.12084154]
[1744651381239,0.00533377,84492.0,84491.0,0.12084154]
[1744651381580,0.24853,84497.0,84491.0,0.13267654]
[1744651381812,0.00533377,84492.0,84489.0,0.001]
[1744651381988,0.011835,84492.0,84490.0,0.12084154]
[1744651382162,0.236711,84491.0,84490.0,0.12084154]
[1744651382359,0.00529352,84491.0,84490.0,0.12084154]
[1744651382605,0.00529352,84491.0,84490.0,0.12320862]
[1744651382810,0.0005,84509.0,84500.0,0.236686]
[1744651383019,0.0608542,84501.0,84500.0,0.35752754]
[1744651383237,0.06617734,84501.0,84500.0,0.35752754]
[1744651383446,0.0608542,84501.0,84500.0,0.35752754]
[1744651384382,0.0132542,84501.0,84500.0,0.35752754]
[1744651384816,0.0132542,84501.0,84500.0,0.37206839]
[1744651385539,0.0132542,84501.0,84500.0,0.37306839]
[1744651385951,0.0132542,84501.0,84500.0,0.37206839]
[1744651386347,0.0132542,84501.0,84500.0,0.37406839]
[1744651386902,0.0132542,84501.0,84500.0,0.35952754]
[1744651387029,0.0132542,84501.0,84500.0,0.36052754]
[1744651387674,0.0132542,84501.0,84500.0,0.37506839]
[1744651388159,0.0132542,84501.0,84500.0,0.71506839]
[1744651391834,0.0132542,84501.0,84500.0,0.70052754]
[1744651392722,0.0132542,84501.0,84500.0,0.71506839]
[1744651396174,0.0132542,84501.0,84500.0,0.70052754]
[1744651401436,0.0132542,84501.0,84500.0,0.71506839]
[1744651404282,0.0623542,84501.0,84500.0,0.36052754]
[1744651406271,0.0623542,84501.0,84500.0,0.12384154]
[1744651406513,0.1167664,84501.0,84500.0,0.12384154]
[1744651407095,0.1167664,84501.0,84500.0,0.003]
[1744651407435,0.011834,84500.0,84496.0,0.011834]
[1744651407576,0.011834,84500.0,84497.0,0.12084154]
[1744651407770,0.00680163,84499.0,84497.0,0.36936754]
[1744651408214,0.1099542,84501.0,84497.0,0.36936754]
[1744651408215,0.1099542,84501.0,84500.0,0.236686]
[1744651408420,0.1099542,84501.0,84500.0,0.35752754]
[1744651409000,0.1167664,84501.0,84500.0,0.12084154]
[1744651409199,0.011835,84492.0,84488.0,0.011836]
[1744651409603,0.248536,84495.0,84490.0,0.011835]
[1744651409778,0.248536,84495.0,84491.0,0.12084154]
[1744651409979,0.00677521,84494.0,84491.0,0.12084154]
[1744651410205,0.25531421,84494.0,84491.0,0.12084154]
[1744651410370,0.236707,84493.0,84491.0,0.12084154]
[1744651410574,0.0477,84492.0,84491.0,0.12084154]
[1744651410777,0.05439785,84492.0,84491.0,0.12084154]
[1744651410980,0.05439785,84492.0,84491.0,0.12384154]
[1744651411380,0.05439785,84492.0,84491.0,0.12184154]
[1744651411780,0.05439785,84492.0,84491.0,0.003]
[1744651411982,0.09949785,84492.0,84491.0,0.003]
[1744651412184,0.09949785,84492.0,84491.0,0.002]
[1744651412506,0.09949785,84492.0,84491.0,0.003]